Cogmind - Beta 10.2 @@@ ROGUE MODE // 2021.09.18 @ 18:31:13 Player: epillipses Result: Destroyed by B-75 Beast with Heavy Machine Gun Performance ------------- Evolutions (5) 2500 Regions Visited (13) 2600 Robots Destroyed (58) 290 Value Destroyed (2055) 2055 Prototype IDs (25) 500 Alien Tech Used (0) 0 Bonus (172) 172 TOTAL SCORE: 8117 Bonus ------- Aligned with FarCom 300 Friendly Fire -128 Cogmind --------- Core Integrity 0/1000 Matter 300/300 Energy 150/150 System Corruption 0% Temperature Cool (12) Movement Walking (120) Location -5/Extension Parts ------- > --- POWER (3) -------- Light Angular Momentum Engine > --- PROPULSION (4) --- Myomer Leg Myomer Leg > --- UTILITY (8) ------ Advanced Signal Interpreter Advanced Targeting Computer Advanced Targeting Computer > --- WEAPON (2) ------- (None) > --- INVENTORY (4) ---- Carbon-fiber Leg System Guard Peak State ------------ > --- POWER ------------ Light Deuterium Engine Light Angular Momentum Engine > --- PROPULSION ------- Flexi-carbon Leg Gravmag System > --- UTILITY ---------- Matter Compressor Advanced Signal Interpreter Improved Salvage Targeting Computer Advanced Targeting Computer Target Analyzer Armor Integrity Analyzer Focal Shield Hacking Suite > --- WEAPON ----------- High-powered Shock Rifle High-powered Shock Rifle > --- INVENTORY -------- Focal Shield AWS/Gauss Shock Bomb Launcher [Rating: 57] Favorites ----------- Power Light Nuclear Core Engine Light Angular Momentum Engine Power Core Light Nuclear Core Propulsion Carbon-fiber Leg Leg Carbon-fiber Leg Hover Unit Gravmag System Flight Unit VTOL Module Utility Advanced Targeting Computer Device Focal Shield Storage Medium Storage Unit Processor Advanced Targeting Computer Hackware Hacking Suite Protection Hardened Medium Armor Plating Weapon AWS/Gauss Energy Gun High-powered Shock Rifle Energy Cannon Light EM Pulse Cannon Ballistic Gun AWS/Gauss Launcher Heavy Missile Launcher Special Weapon Improved Plasma Cutter Slashing Weapon Ripper Build | -11 -10 -10 -10 -9 -8 -7 -7 -7 -7 -7 -6 -5 -5 ------- Run | Scr Mat Min Exi Min Mat Fac Was Fac Low Low Fac Fac Ext Slots Evolved 10 | . . . . . 4 2 . . . . 2 2 . Power 2 | . . . . . . 1 . . . . . 1 . Propulsion 2 | . . . . . . . . . . . 1 1 . Utility 6 | . . . . . 4 1 . . . . 1 . . Weapon . | . . . . . . . . . . . . . . Parts Attached 142 | 4 29 . 2 9 14 4 3 9 12 1 31 4 20 Power 13 | 1 3 . . 2 . 1 . . 1 . 3 . 2 Engine 10 | 1 3 . . 1 . . . . . . 3 . 2 Core 3 | . . . . 1 . 1 . . 1 . . . . Reactor . | . . . . . . . . . . . . . . Propulsion 37 | 2 6 . . 4 3 1 . 2 . . 8 . 11 Treads . | . . . . . . . . . . . . . . Leg 30 | 2 4 . . 4 3 1 . 2 . . 4 . 10 Wheel . | . . . . . . . . . . . . . . Hover 5 | . . . . . . . . . . . 4 . 1 Flight 2 | . 2 . . . . . . . . . . . . Utility 61 | . 9 . 1 3 11 2 3 4 7 1 15 2 3 Device 28 | . 7 . . 2 4 . 1 1 2 . 7 2 2 Storage 6 | . . . . . 2 . . . 1 . 2 . 1 Processor 13 | . 1 . 1 . 3 2 . 2 . . 4 . . Hackware 3 | . 1 . . . . . . 1 . . 1 . . Protection 11 | . . . . 1 2 . 2 . 4 1 1 . . Artifact . | . . . . . . . . . . . . . . Weapon 31 | 1 11 . 1 . . . . 3 4 . 5 2 4 Energy Gun 11 | 1 . . . . . . . 2 1 . 4 . 3 Energy Cannon 12 | . 11 . . . . . . 1 . . . . . Ballistic Gun 3 | . . . 1 . . . . . 2 . . . . Ballistic Cannon . | . . . . . . . . . . . . . . Launcher 3 | . . . . . . . . . 1 . 1 1 . Special Weapon 1 | . . . . . . . . . . . . 1 . Impact Weapon . | . . . . . . . . . . . . . . Slashing Weapon 1 | . . . . . . . . . . . . . 1 Piercing Weapon . | . . . . . . . . . . . . . . Special Melee Weapon . | . . . . . . . . . . . . . . Unidentified Prototypes 1 | . . . . . . . . . . . 1 . . Parts Lost 42 | . 2 . . . . . . . 5 2 6 12 15 Power 3 | . . . . . . . . . 2 . . . 1 Propulsion 12 | . . . . . . . . . 1 . 2 2 7 Utility 14 | . 1 . . . . . . . . 1 2 7 3 Weapon 13 | . 1 . . . . . . . 2 1 2 3 4 Highest Loss Streak 6 | . 2 . . . . . . . 3 2 3 6 4 Average Slot Usage (%) 82 | . 92 100 90 85 85 86 91 97 88 67 84 56 50 Engine 4 | . 13 14 14 11 . . . . . . 6 . 3 Core 4 | . . . . 2 9 9 15 15 5 . . . . Leg 16 | . 27 28 28 28 17 15 15 15 14 7 5 3 15 Hover 1 | . . . . . . . . . . . 6 2 . Device 8 | . 22 14 4 9 15 . . 5 . . 11 14 4 Storage 3 | . . . . . 6 7 7 7 6 5 3 . . Processor 20 | . 1 14 23 9 11 29 30 29 30 30 26 17 17 Hackware 2 | . . . . . . . . . 7 7 6 10 . Protection 5 | . . . . 9 16 15 13 7 6 7 1 . . Energy Gun 3 | . 1 . . . . . . 5 6 6 11 2 2 Energy Cannon 4 | . 22 28 9 . . . . 7 2 . . . . Ballistic Gun 3 | . . . 9 14 9 7 7 . 4 . . . . Naked Turns . | . . . . . . . . . . . . . . Heaviest Build 41 | 5 15 14 15 24 38 40 40 41 36 14 35 20 19 Greatest Support 100 | 20 20 20 20 30 30 35 35 38 38 20 29 20 100 Greatest Overweight (x) 8 | 1 3 . . . 1 1 1 1 . . 8 1 . Average Overweight (x) . | . . . . . . . 1 . . . . . . Largest Inventory Capacity 10 | 4 4 4 4 4 10 8 8 8 8 8 8 4 4 Average Capacity 5 | 4 4 4 4 4 7 8 8 8 7 7 4 4 4 Most Carried 8 | 1 4 4 4 4 8 8 8 8 8 8 4 4 3 Average Carried 5 | . 3 4 4 3 6 7 7 7 7 7 3 3 2 Final Capacity 8 | 4 4 4 4 4 8 8 8 8 8 4 4 4 4 Final Carried 8 | 1 4 4 4 4 8 8 7 8 8 4 4 2 2 Class Distribution -------------------- 75% | Mutant 19% | Scavenger-Mutant 4% | Hacker-Mutant Dominant Class ---------------- Mutant | -10/Materials Mutant | -10/Mines Mutant | -10/Exiles Mutant | -9/Mines Mutant | -8/Materials Scavenger-Mutant | -7/Factory Scavenger-Mutant | -7/Waste Mutant | -7/Factory Mutant | -7/Lower Caves Mutant | -7/Lower Caves Scavenger-Mutant | -6/Factory Hacker-Mutant | -5/Factory Mutant | -5/Extension Resources | -11 -10 -10 -10 -9 -8 -7 -7 -7 -7 -7 -6 -5 -5 ----------- Run | Scr Mat Min Exi Min Mat Fac Was Fac Low Low Fac Fac Ext Matter Collected 1557 | 240 199 . . 191 140 40 30 90 127 13 221 . 266 Remotely . | . . . . . . . . . . . . . . Salvage Created 2661 | . 238 . . 222 893 164 207 143 184 . 254 . 356 Parts 137 | . 18 . . 10 48 9 6 9 9 . 20 . 8 Haulers Intercepted 2 | . . . . . 1 1 . . . . . . . Recyclers Shooed . | . . . . . . . . . . . . . . Parts Field Recycled . | . . . . . . . . . . . . . . Retrieved Matter . | . . . . . . . . . . . . . . Parts Self-Destructed 3 | . . . . . . . . . 3 . . . . Prevented . | . . . . . . . . . . . . . . Kills | -11 -10 -10 -10 -9 -8 -7 -7 -7 -7 -7 -6 -5 -5 ------- Run | Scr Mat Min Exi Min Mat Fac Was Fac Low Low Fac Fac Ext Combat Hostiles Destroyed 44 | . 8 . . 4 12 2 1 2 4 . 5 . 6 Melee 5 | . . . . . . . . . . . . . 5 Guns 23 | . . . . 4 12 2 1 1 . . 2 . 1 Cannons 6 | . 5 . . . . . . 1 . . . . . AOE 10 | . 3 . . . . . . . 4 . 3 . . Classes Destroyed 14 | . 5 . . . 5 . 1 . 1 . 2 . . Worker 1 | . . . . . 1 . . . . . . . . Builder 1 | . 1 . . . . . . . . . . . . Hauler 2 | . . . . . 1 1 . . . . . . . Recycler 1 | . . . . . 1 . . . . . . . . Operator 3 | . 2 . . . 1 . . . . . . . . Watcher 5 | . 1 . . . 3 . . . . . 1 . . Swarmer 8 | . 6 . . . . . . . 1 . 1 . . Grunt 24 | . 2 . . 4 8 2 . . 2 . . . 6 Brawler 2 | . . . . . . . . . 1 . 1 . . Duelist 1 | . . . . . . . . . . . 1 . . Sentry 5 | . . . . . 3 . . 2 . . . . . Hunter 1 | . . . . . 1 . . . . . . . . Programmer 2 | . . . . . . . . . . . 2 . . Compactor 1 | . . . . . . . 1 . . . . . . Thug 1 | . . . . 1 . . . . . . . . . Best Kill Streak 6 | . 3 . . 3 6 3 1 1 3 . 4 . 2 Combat Bots Only 4 | . 3 . . 3 3 2 1 1 3 . 4 . 2 Max Kills in Single Turn 3 | . 3 . . 1 2 1 1 1 2 . 1 . 1 Gunslinging . | . . . . . . . . . . . . . . Exploded 3 | . 3 . . . . . . . 2 . 1 . . Melee 1 | . . . . . . . . . . . . . 1 Uniques/NPCs Destroyed . | . . . . . . . . . . . . . . Combat | -11 -10 -10 -10 -9 -8 -7 -7 -7 -7 -7 -6 -5 -5 -------- Run | Scr Mat Min Exi Min Mat Fac Was Fac Low Low Fac Fac Ext Damage Taken 5184 | . 405 . . . 123 . . 165 924 257 761 1035 1514 Core 1408 | . 26 . . . 43 . . 12 129 32 162 595 409 Absorbed by Shields 195 | . . . . . . . . 96 . . 99 . . Core Remaining (%) 87 | 100 . . . 89 92 . . . . 75 80 . . Volleys Fired 90 | . 25 . . . . . . 5 11 5 32 2 10 Largest 2 | . 2 . . . . . . 2 2 1 2 2 1 Hottest 144 | . 136 . . . . . . 144 144 65 120 96 69 Shots Fired 244 | . 50 . . 19 56 6 23 10 22 5 40 3 10 Gun 175 | . . . . 19 56 6 23 5 12 5 38 1 10 Cannon 60 | . 50 . . . . . . 5 5 . . . . Launcher 8 | . . . . . . . . . 5 . 2 1 . Special 1 | . . . . . . . . . . . . 1 . Kinetic 109 | . . . . 19 56 6 23 . 5 . . . . Thermal 80 | . 42 . . . . . . 10 12 5 . 1 10 Explosive 5 | . . . . . . . . . 5 . . . . Electromagnetic 50 | . 8 . . . . . . . . . 40 2 . Robot Hit Streak 29 | . 4 . . 10 11 17 29 2 9 1 6 4 12 Robot Miss Streak 2 | . 2 . . 2 2 . 1 1 1 1 2 . . Penetration Max . | . . . . . . . . . . . . . . Secondary Targets . | . . . . . . . . . . . . . . Autonomous 105 | . . . . 19 56 6 24 . . . . . . Shots Hit Robots 200 | . 26 . . 15 47 6 21 6 17 2 25 2 33 Core Hits 94 | . 12 . . 5 25 4 4 6 7 2 14 . 15 Critical Hits 1 | . . . . . 1 . . . . . . . . Critical Kills . | . . . . . . . . . . . . . . Critical Parts Destroyed 1 | . . . . . 1 . . . . . . . . Melee Attacks 32 | . . . . . . . . . . . . . 32 Impact . | . . . . . . . . . . . . . . Slashing 32 | . . . . . . . . . . . . . 32 Piercing . | . . . . . . . . . . . . . . Sneak Attacks 1 | . . . . . . . . . . . . . 1 Combat Hostiles 1 | . . . . . . . . . . . . . 1 Follow-up Attacks . | . . . . . . . . . . . . . . Damage Inflicted 6469 | . 792 . . 560 1502 174 695 151 486 34 892 30 1153 Guns 3614 | . . . . 560 1470 174 695 76 167 34 275 15 148 Cannons 584 | . 459 . . . . . . 75 50 . . . . Explosions 1266 | . 333 . . . 32 . . . 269 . 617 15 . Melee 1000 | . . . . . . . . . . . . . 1000 Ramming 5 | . . . . . . . . . . . . . 5 Kinetic 2966 | . . . . 560 1470 174 695 . 67 . . . . Thermal 1126 | . 385 . . . 32 . . 151 150 34 226 . 148 Explosive 941 | . 333 . . . . . . . 269 . 339 . . Electromagnetic 431 | . 74 . . . . . . . . . 327 30 . Impact . | . . . . . . . . . . . . . . Slashing 1000 | . . . . . . . . . . . . . 1000 Piercing . | . . . . . . . . . . . . . . Highest Corruption 5 | . . . . . . . . . . . 5 . . Average Corruption 3 | . . . . . . . . . . . 3 . . Corruption Purged . | . . . . . . . . . . . . . . Effects 16 | . . . . . . . . . . . 16 . . Message Errors 2 | . . . . . . . . . . . 2 . . Matter Fused 1 | . . . . . . . . . . . 1 . . Heat Flow Errors 4 | . . . . . . . . . . . 4 . . Energy Discharges 2 | . . . . . . . . . . . 2 . . Data Loss (minor) 5 | . . . . . . . . . . . 5 . . Targeting Errors 2 | . . . . . . . . . . . 2 . . Overload Shots . | . . . . . . . . . . . . . . Overflow Damage 140 | . 10 . . . . . . . . . 103 . 27 Projectiles 10 | . 10 . . . . . . . . . . . . Explosions 103 | . . . . . . . . . . . 103 . . Melee 27 | . . . . . . . . . . . . . 27 Knockbacks . | . . . . . . . . . . . . . . Impact . | . . . . . . . . . . . . . . Kinetic . | . . . . . . . . . . . . . . Secondary . | . . . . . . . . . . . . . . Self-Inflicted Damage 156 | . . . . . . . . . . . 154 . 2 Shots 3 | . . . . . . . . . . . 3 . . Rammed 2 | . . . . . . . . . . . . . 2 Targets Rammed 2 | . . . . . . . . . . . . . 2 Kicked . | . . . . . . . . . . . . . . Crushed . | . . . . . . . . . . . . . . Highest Temperature 365 | . 365 . . . . . . 321 239 67 213 . 8 Average Temperature 87 | . 112 . . . . . . 141 71 30 60 . 3 Received Heat Transfer 995 | . 36 . . . . . . 52 84 108 16 99 600 Effects 2 | . 2 . . . . . . . . . . . . Interference 1 | . 1 . . . . . . . . . . . . Damage (minor) 1 | . 1 . . . . . . . . . . . . Siege Activations . | . . . . . . . . . . . . . . Robots Corrupted . | . . . . . . . . . . . . . . Combat Hostiles . | . . . . . . . . . . . . . . Parts Fried 3 | . 2 . . . . . . . . . 1 . . Impact Corruptions . | . . . . . . . . . . . . . . Robots Melted . | . . . . . . . . . . . . . . Combat Hostiles . | . . . . . . . . . . . . . . Parts Melted 1 | . 1 . . . . . . . . . . . . Heat Transferred 1828 | . 703 . . . 50 . . 259 296 74 150 . 296 Parts Sabotaged . | . . . . . . . . . . . . . . Parts Stolen . | . . . . . . . . . . . . . . Parts Stripped . | . . . . . . . . . . . . . . Power Chain Reactions 3 | . . . . . . . . . . . 3 . . Missiles Intercepted . | . . . . . . . . . . . . . . Alert | -11 -10 -10 -10 -9 -8 -7 -7 -7 -7 -7 -6 -5 -5 ------- Run | Scr Mat Min Exi Min Mat Fac Was Fac Low Low Fac Fac Ext Peak Influence 415 | . 152 41 . 80 310 93 33 54 . . 415 232 210 Initial 198 | . . 41 . . 7 22 32 9 . . . 198 113 Average 73 | . 93 41 . 16 159 76 19 23 . . 57 193 76 Maximum Alert Level 2 | . . . . . 1 . . . . . 2 1 1 Low Security (%) 93 | 100 100 100 . 100 73 100 100 100 . . 93 75 98 Level 1 4 | . . . . . 26 . . . . . . 24 1 Level 2 1 | . . . . . . . . . . . 6 . . Level 3 . | . . . . . . . . . . . . . . Level 4 . | . . . . . . . . . . . . . . Level 5 . | . . . . . . . . . . . . . . High Security . | . . . . . . . . . . . . . . Max Security . | . . . . . . . . . . . . . . Squads Dispatched 12 | . 1 . . 1 1 . . 1 . . 4 1 3 Investigation 5 | . . . . 1 . . . . . . 1 1 2 Extermination 4 | . . . . . . . . 1 . . 3 . . Reinforcement 3 | . 1 . . . 1 . . . . . . . 1 Assault . | . . . . . . . . . . . . . . Garrison . | . . . . . . . . . . . . . . Intercept . | . . . . . . . . . . . . . . Construction Impeded . | . . . . . . . . . . . . . . Haulers Reinforced . | . . . . . . . . . . . . . . Stealth | -11 -10 -10 -10 -9 -8 -7 -7 -7 -7 -7 -6 -5 -5 --------- Run | Scr Mat Min Exi Min Mat Fac Was Fac Low Low Fac Fac Ext Distress Signals 3 | . . . . . 1 . . . . . . . 2 Communications Jammed . | . . . . . . . . . . . . . . Distress Signals . | . . . . . . . . . . . . . . Times Spotted 83 | . 10 . . 3 14 1 5 3 9 3 8 10 17 Peak Tracking Total 7 | . 3 . . 2 3 1 5 1 4 3 4 7 4 Tactical Retreats 9 | . . . . . . . . . 1 . 1 2 5 Traps | -11 -10 -10 -10 -9 -8 -7 -7 -7 -7 -7 -6 -5 -5 ------- Run | Scr Mat Min Exi Min Mat Fac Was Fac Low Low Fac Fac Ext Traps Triggered 7 | . 3 . . . . 1 . 1 . . 2 . . Indirectly . | . . . . . . . . . . . . . . Trap Hack Attempts . | . . . . . . . . . . . . . . Triggered . | . . . . . . . . . . . . . . Disarmed . | . . . . . . . . . . . . . . Reprogrammed . | . . . . . . . . . . . . . . Reused . | . . . . . . . . . . . . . . Traps Extracted . | . . . . . . . . . . . . . . Installed 5 | . . 5 . . . . . . . . . . . Triggered . | . . . . . . . . . . . . . . Machines | -11 -10 -10 -10 -9 -8 -7 -7 -7 -7 -7 -6 -5 -5 ---------- Run | Scr Mat Min Exi Min Mat Fac Was Fac Low Low Fac Fac Ext Machines Disabled 7 | . 2 . . . 3 . . . . . 2 . . Max in Single Turn 2 | . 1 . . . 2 . . . . . 2 . . Machines Sabotaged . | . . . . . . . . . . . . . . Garrisons Compromised . | . . . . . . . . . . . . . . Overloaded Fab Kills . | . . . . . . . . . . . . . . Fab Network Shutdowns 1 | . . . . . . . . . . . 1 . . Hacking | -11 -10 -10 -10 -9 -8 -7 -7 -7 -7 -7 -6 -5 -5 --------- Run | Scr Mat Min Exi Min Mat Fac Was Fac Low Low Fac Fac Ext Machines Accessed 37 | . 4 . 5 2 5 2 . 2 . . 9 3 5 Terminals 10 | . 2 . . . 1 . . 1 . . 1 1 4 Fabricators 5 | . . . . . . . . 1 . . 3 1 . Repair Stations 6 | . 1 . . . 2 1 . . . . 1 . 1 Recycling Units 5 | . 1 . . . . 1 . . . . 3 . . Scanalyzers 4 | . . . . . 2 . . . . . 1 1 . Garrison Access . | . . . . . . . . . . . . . . Total Hacks 135 | . 15 . 50 2 17 2 . 12 . . 22 6 9 Successful 105 | . 11 . 50 2 14 2 . 7 . . 13 5 1 Failed 29 | . 4 . . . 3 . . 4 . . 9 1 8 Catastrophic 5 | . . . . . . . . 1 . . 2 . 2 Database Lockouts 1 | . . . . . . . . 1 . . . . . Manual 14 | . 2 . 1 . . . . 6 . . 4 . 1 Terminals 37 | . 9 . . . 3 . . 11 . . 5 3 6 Fabricators 8 | . . . . . . . . 1 . . 6 1 . Repair Stations 16 | . 4 . . . 6 1 . . . . 2 . 3 Recycling Units 7 | . 2 . . . . 1 . . . . 4 . . Scanalyzers 15 | . . . . . 8 . . . . . 5 2 . Garrison Access . | . . . . . . . . . . . . . . Terminal Hacks 71 | . 5 . 50 2 2 . . 7 . . 2 2 1 Record 59 | . 4 . 49 . . . . 5 . . 1 . . Open Door 3 | . . . . 2 . . . . . . . . 1 Branch Access Points 1 | . . . . . . . . . . . . 1 . Machine Index 1 | . . . . . . . . . . . . 1 . Terminal Index 1 | . . . . . . . . . . . 1 . . Unreport Threat 1 | . . . . . 1 . . . . . . . . Locate Traps 1 | . . . . . . . . 1 . . . . . Hauler Manifests 1 | . 1 . . . . . . . . . . . . Zone Layout 2 | . . . . . 1 . . 1 . . . . . EX-Prototype ID Bank 1 | . . . 1 . . . . . . . . . . Fabricator Hacks 4 | . . . . . . . . . . . 3 1 . Load Schematic 1 | . . . . . . . . . . . 1 . . Build 3 | . . . . . . . . . . . 2 1 . Repair Station Hacks 11 | . 4 . . . 4 1 . . . . 2 . . Scan Component 6 | . 2 . . . 2 1 . . . . 1 . . Repair 5 | . 2 . . . 2 . . . . . 1 . . Recycling Unit Hacks 5 | . 2 . . . . 1 . . . . 2 . . Report Inventory 3 | . 1 . . . . 1 . . . . 1 . . Retrieve Components 2 | . 1 . . . . . . . . . 1 . . Scanalyzer 14 | . . . . . 8 . . . . . 4 2 . Insert Component 6 | . . . . . 3 . . . . . 2 1 . Analyze 8 | . . . . . 5 . . . . . 2 1 . Garrison Access Hacks . | . . . . . . . . . . . . . . Unauthorized Hacks . | . . . . . . . . . . . . . . Terminals . | . . . . . . . . . . . . . . Fabricators . | . . . . . . . . . . . . . . Repair Stations . | . . . . . . . . . . . . . . Recycling Units . | . . . . . . . . . . . . . . Scanalyzers . | . . . . . . . . . . . . . . Garrison Access . | . . . . . . . . . . . . . . Data Cores Recovered 1 | . . . . . 1 . . . . . . . . Used . | . . . . . . . . . . . . . . Hacking Detections 22 | . 2 . . . 4 1 . 2 . . 7 2 4 Full Trace Events 4 | . . . . . . . . . . . 1 1 2 Feedback Events . | . . . . . . . . . . . . . . Feedback Blocked . | . . . . . . . . . . . . . . Robot Schematics Acquired . | . . . . . . . . . . . . . . Robots Built . | . . . . . . . . . . . . . . Matter 438 | . . . . . . . . . . . 285 153 . Time 233 | . . . . . . . . . . . 152 81 . Total Robot Build Rating . | . . . . . . . . . . . . . . Part Schematics Acquired 6 | . . . . . 3 . . . . . 2 1 . Parts Built 1 | . . . . . . . . . . . 1 . . Matter 146 | . . . . . . . . . . . 146 . . Time 36 | . . . . . . . . . . . 36 . . Total Part Build Rating 3 | . . . . . . . . . . . 3 . . Parts Repaired 5 | . 2 . . . 2 . . . . . 1 . . Time 156 | . 58 . . . 76 . . . . . 22 . . Parts Recycled . | . . . . . . . . . . . . . . Recycled Matter . | . . . . . . . . . . . . . . Retrieved Matter . | . . . . . . . . . . . . . . Retrieved Components 3 | . 1 . . . . . . . . . 2 . . Parts Scanalyzed 6 | . . . . . 3 . . . . . 2 1 . Part Schematics Acquired 6 | . . . . . 3 . . . . . 2 1 . Parts Damaged . | . . . . . . . . . . . . . . Bothacking | -11 -10 -10 -10 -9 -8 -7 -7 -7 -7 -7 -6 -5 -5 ------------ Run | Scr Mat Min Exi Min Mat Fac Was Fac Low Low Fac Fac Ext Used RIF Installer . | . . . . . . . . . . . . . . Robots Hacked . | . . . . . . . . . . . . . . Non-combat . | . . . . . . . . . . . . . . Combat . | . . . . . . . . . . . . . . Robot Hacks Applied . | . . . . . . . . . . . . . . Relay Couplers Released . | . . . . . . . . . . . . . . Robots Rewired . | . . . . . . . . . . . . . . Allies Hacked . | . . . . . . . . . . . . . . Hacks Repelled . | . . . . . . . . . . . . . . Allies | -11 -10 -10 -10 -9 -8 -7 -7 -7 -7 -7 -6 -5 -5 -------- Run | Scr Mat Min Exi Min Mat Fac Was Fac Low Low Fac Fac Ext Total Allies 3 | . . 2 . . . . 1 . . . . . . Largest Group 2 | . . 2 2 . . . 1 . . . . . . Highest-Rated Group 41 | . . 41 41 . . . 31 . . . . . . Highest-Rated Ally 31 | . . 31 31 . . . 31 . . . . . . Total Orders 2 | . . . . . . . 1 . . . 1 . . EXPLORE 1 | . . . . . . . . . . . 1 . . RETURN 1 | . . . . . . . 1 . . . . . . Ally Attacks 22 | . . . . . . . 18 . 4 . . . . Total Damage 147 | . . . . . . . 147 . . . . . . Kills . | . . . . . . . . . . . . . . Allies Corrupted . | . . . . . . . . . . . . . . Allies Melted . | . . . . . . . . . . . . . . Intel | -11 -10 -10 -10 -9 -8 -7 -7 -7 -7 -7 -6 -5 -5 ------- Run | Scr Mat Min Exi Min Mat Fac Was Fac Low Low Fac Fac Ext Robot Analysis Total . | . . . . . . . . . . . . . . Derelict Logs Recovered 4 | . . . . 1 . . . . 3 . . . . Drone Launches 20 | . . . . . . . 14 . 4 . 2 . . Drone Recoveries 3 | . . . . . . . 2 . . . 1 . . Exploration | -11 -10 -10 -10 -9 -8 -7 -7 -7 -7 -7 -6 -5 -5 ------------- Run | Scr Mat Min Exi Min Mat Fac Was Fac Low Low Fac Fac Ext Turns Passed 7816 | 37 634 262 454 535 833 353 189 804 934 371 1297 225 888 Spaces Moved 5393 | 30 354 197 376 402 461 225 112 514 698 277 854 240 653 Core 384 | 15 4 . . . . . . . . . 2 118 245 Treads . | . . . . . . . . . . . . . . Legs 4580 | 15 345 197 376 402 461 225 112 514 698 277 494 122 342 Wheels . | . . . . . . . . . . . . . . Hover 424 | . . . . . . . . . . . 358 . 66 Flight 5 | . 5 . . . . . . . . . . . . Fastest Speed 37 | 50 37 120 120 120 120 125 155 125 125 130 56 50 50 Average Speed 121 | 101 119 120 120 120 142 151 155 147 125 130 114 86 87 Slowest Speed 450 | 120 200 120 120 120 150 155 155 160 130 130 450 120 120 Overloaded Moves . | . . . . . . . . . . . . . . Propulsion Burnouts . | . . . . . . . . . . . . . . Robots Hopped . | . . . . . . . . . . . . . . Cave-ins Triggered . | . . . . . . . . . . . . . . Exploration Rate (%) 41 | 4 38 38 90 72 41 6 78 12 85 39 26 8 44 Regions Visited 13 Branch Regions 6 Pre-discovered Areas 2 | . . . 1 1 . . . . . . . . . Known Exits Taken 10 | . 1 1 1 1 1 . . 1 1 1 1 1 . Unknown Exits Taken 1 | 1 . . . . . . . . . . . . . Scrap Searched 8 | . . . . 1 . . . . 7 . . . . Spaces Dug . | . . . . . . . . . . . . . . Terrain Destroyed 173 | . 7 . . 8 47 . 2 . 70 . 39 . . Melee . | . . . . . . . . . . . . . . Projectile 32 | . . . . 8 22 . 2 . . . . . . AOE 141 | . 7 . . . 25 . . . 70 . 39 . . Terrain Rammed . | . . . . . . . . . . . . . . Walls Destroyed . | . . . . . . . . . . . . . . Machines Disabled . | . . . . . . . . . . . . . . Actions | -11 -10 -10 -10 -9 -8 -7 -7 -7 -7 -7 -6 -5 -5 --------- Run | Scr Mat Min Exi Min Mat Fac Was Fac Low Low Fac Fac Ext Total 6463 | 34 511 222 379 460 634 239 129 549 737 282 1133 252 902 Wait 664 | . 74 21 . 29 140 7 9 8 . . 187 7 182 Move 5381 | 29 353 196 375 401 460 225 111 513 697 276 853 239 653 Hop . | . . . . . . . . . . . . . . Pick Up 48 | 1 11 . . 6 11 2 2 2 5 . 7 . 1 Fast Attach 84 | 4 20 . 1 3 7 . . 5 8 . 19 2 15 Attach 20 | . 2 . . . 2 2 3 1 . . 5 2 3 Detach 13 | . 2 . . 2 1 . 1 1 1 . 5 . . Swap 38 | . 7 . 1 6 5 2 . 3 4 1 7 . 2 Drop 72 | . 17 . 2 13 8 1 3 6 11 . 11 . . Fire 90 | . 25 . . . . . . 5 11 5 32 2 10 Melee 32 | . . . . . . . . . . . . . 32 Ram 2 | . . . . . . . . . . . . . 2 Kick . | . . . . . . . . . . . . . . Crush . | . . . . . . . . . . . . . . Escape Stasis 12 | . . . . . . . . 5 . . 7 . . Rewire 2 | . . . . . . . . . . . . . 2 Trap 5 | . . 5 . . . . . . . . . . . Miscellaneous . | . . . . . . . . . . . . . . Route ------- -11/Scrapyard -10/Materials (discovered 3 exits: *Mat / *Min x2) -10/Mines -10/Exiles -9/Mines -8/Materials (discovered 2 exits: *Fac / *Sto) -7/Factory -7/Waste -7/Factory -7/Lower Caves (discovered 2 exits: *Low / *Zio) -7/Lower Caves -6/Factory (discovered 3 exits: *Fac x2 / Low) -5/Factory (discovered 4 exits: Upp x2 / *Ext x2) -5/Extension History --------- Turn | Location | Event 19 | -11/Scrapyard | Discovered new exit (range 15) 38 | -11/Scrapyard | Entered Materials 72 | -10/Materials | Discovered new exit (range 15) 309 | -10/Materials | Build established: Mutant 326 | -10/Materials | Repaired Particle Cannon 355 | -10/Materials | Repaired Sensor Array 363 | -10/Materials | Discovered new exit (range 5) 466 | -10/Materials | Discovered new exit (range 11) 590 | -10/Materials | Identified exit to Mines 636 | -10/Materials | Identified exit to Materials 672 | -10/Materials | Entered Mines 701 | -10/Mines | Found a hidden stash of uninstalled traps 769 | -10/Mines | Deemed a non-threat by the Exiles lab entrance 770 | -10/Mines | Discovered new exit (range 5) 773 | -10/Mines | Identified exit to Exiles 934 | -10/Mines | Entered Exiles 934 | -10/Exiles | Accompanied by 2 allies 964 | -10/Exiles | Led the pair of lost Derelicts to a safe place 966 | -10/Exiles | Met 8R-AWN 987 | -10/Exiles | Met EX-HEX 1018 | -10/Exiles | Met EX-BIN 1035 | -10/Exiles | Aligned with FarCom system 1036 | -10/Exiles | Given EX-Vault access code 1086 | -10/Exiles | Opened EX-Vault 1093 | -10/Exiles | Found AWS/Gauss 1121 | -10/Exiles | Warned to stay clear of 0b10 Research branches 1159 | -10/Exiles | Learned location of Zion (-6) 1160 | -10/Exiles | Met EX-DEC 1208 | -10/Exiles | Visited The Gauntlet 1374 | -10/Exiles | Discovered new exit (range 14) 1386 | -10/Exiles | Identified exit to Mines 1388 | -10/Exiles | Left Exiles lab with AWS/Gauss 1388 | -10/Exiles | Entered Mines 1506 | -9/Mines | Received a Rocket Launcher from a helpful Derelict 1520 | -9/Mines | Discovered new exit (range 3) 1523 | -9/Mines | Identified exit to Materials 1547 | -9/Mines | Met a Derelict shopkeep closing up shop 1669 | -9/Mines | Found the Drone Emporium 1675 | -9/Mines | Found Prototype Device 1698 | -9/Mines | Identified Bomb Drone Bay 1923 | -9/Mines | Entered Materials 1923 | -8/Materials | Evolved 4 slots: Utility x4 1985 | -8/Materials | Repaired Carbon-fiber Leg 2305 | -8/Materials | Discovered new exit (range 11) 2419 | -8/Materials | Repaired Carbon-fiber Leg 2490 | -8/Materials | Identified exit to Storage 2655 | -8/Materials | Discovered new exit (range 10) 2669 | -8/Materials | Identified exit to Factory 2756 | -8/Materials | Entered Factory 2756 | -7/Factory | Evolved 2 slots: Power x1, Utility x1 2851 | -7/Factory | Build established: Scavenger-Mutant 3109 | -7/Factory | Sucked down chute 3109 | -7/Factory | Entered Waste 3110 | -7/Waste | Met a frightened Derelict 3159 | -7/Waste | Spotted C-40 Crusher 3159 | -7/Waste | Spotted C-40 Crusher 3159 | -7/Waste | Spotted C-40 Crusher 3162 | -7/Waste | Spotted C-40 Crusher 3175 | -7/Waste | Destroyed C-40 Crusher 3192 | -7/Waste | Spotted C-40 Crusher 3226 | -7/Waste | Spotted C-40 Crusher 3274 | -7/Waste | Discovered new exit (range 16) 3296 | -7/Waste | Identified exit to Factory 3298 | -7/Waste | Entered Factory 3676 | -7/Factory | Build established: Mutant 3943 | -7/Factory | Discovered new exit (range 13) 3974 | -7/Factory | Identified exit to Lower Caves 4034 | -7/Factory | Central database locked down 4102 | -7/Factory | Entered Lower Caves 4145 | -7/Lower Caves | Learned location of 1 exit from Factory 4164 | -7/Lower Caves | Learned Factory garrison access intel 4445 | -7/Lower Caves | Lost 3 parts (2p1w) 4611 | -7/Lower Caves | A Derelict revealed a hidden shortcut to a safe place 4616 | -7/Lower Caves | Identified exit to Zion 4693 | -7/Lower Caves | Learned 4 Factory zone layouts 4982 | -7/Lower Caves | Spotted B-75 Beast 5014 | -7/Lower Caves | Discovered new exit (range 16) 5034 | -7/Lower Caves | Identified exit to Lower Caves 5036 | -7/Lower Caves | Entered another Lower Caves area 5143 | -7/Lower Caves | Discovered new exit (range 11) 5152 | -7/Lower Caves | Identified exit to Factory 5407 | -7/Lower Caves | Entered Factory 5407 | -6/Factory | Evolved 2 slots: Propulsion x1, Utility x1 5408 | -6/Factory | Identified exit to Lower Caves 5410 | -6/Factory | Loaded intel: 3 garrison access locations 5773 | -6/Factory | Lost 3 parts (1n2u) 6168 | -6/Factory | Build established: Scavenger-Mutant 6324 | -6/Factory | Repaired Gravmag System 6332 | -6/Factory | Discovered new exit (range 10) 6338 | -6/Factory | Identified exit to Factory 6377 | -6/Factory | Spotted B-75 Beast 6476 | -6/Factory | Fabricated Hacking Suite? 6617 | -6/Factory | Local fabrication network quarantined 6693 | -6/Factory | Discovered exit to Factory (range 15) 6704 | -6/Factory | Entered another Factory area 6704 | -5/Factory | Evolved 2 slots: Power x1, Propulsion x1 6813 | -5/Factory | Spotted B-75 Beast 6885 | -5/Factory | Lost 6 parts (2n2u2w) 6895 | -5/Factory | Identified exit to Upper Caves 6895 | -5/Factory | Identified exit to Extension 6897 | -5/Factory | Build established: Hacker-Mutant 6922 | -5/Factory | Core integrity fell below 50% 6929 | -5/Factory | Entered Extension 6955 | -5/Extension | Lost 6 parts (5u1w) 7087 | -5/Extension | Rescued a captive Derelict 7145 | -5/Extension | Core integrity fell below 20% 7201 | -5/Extension | Build established: Mutant 7243 | -5/Extension | Lost 4 parts (2n1u1w) 7813 | -5/Extension | Spotted B-75 Beast 7817 | -5/Extension | Destroyed by B-75 Beast with Heavy Machine Gun Last Messages --------------- 07323_ Destroyed Carbon-fiber Leg. 07328_ Destroyed Lgt. Angular Momentum Engine. 07328_ Myomer Leg destroyed. 07334_ Hvy. Laser destroyed. 07335_ G-50 Soldier destroyed. 07339_ Acquired 20 matter. 07346_ Acquired Carbon-fiber Leg. 07387_ Acquired 20 matter. 07682_ Door Terminal unresponsive. 07690_ W-25 Informer sends out distress signal. 07702_ Hvy. Laser destroyed. 07702_ Penetrated by Slug. 07702_ Critical hit. 07702_ Myomer Leg destroyed. 07705_ Penetrated by Slug. 07744_ Ripper destroyed. 07814_ Focal Shield destroyed. 07814_ Knocked back. 07817_ Carbon-fiber Leg destroyed. 07817_ Myomer Leg destroyed. Map ----- +----------------------------------------------------+ | # # "" ###########?????????????????????????? | | # % / "T #?????????????????????????? | | # = # #########^#?????????????????????????? | | # % # #???????# #?????????????????????????? | | # ## ##???????# #?????????????????????????? | | ###+##### #?######## #?????????????????????????? | | ??# #???# #?# = #%####??????????????????????? | | ### #???# ### +% #??????????????????????? | | # #???# +Y # #??????????????????????? | | # #???# ##### *= # #??????????????????????? | | # ##### #???# # #??????????????????????? | | %+ #???# # #??????????g?g?????????? | | #########???######## #??????????????????????? | | #??????????????????# #??????????????????????? | | ###??????????????????# u#??????????????????????? | | ??????????????????#### #??????????????????????? | | ??????????????????# #??????????????????????? | | ??????????????????# #??????????????????????? | | ??????????????????# #??????????????????????? | | ??????????????????# #??????????????????????? | | ??????????????????# #??????????????????????? | | ??????????????????# #??????????????????????? | | ??????????????????# #??????????????????????? | | ??????????????????####### #??????????????????????? | | ????????????????????????# #?????????w????????????? | | ????????????????????????#@#??????????????????????? | | ????????????????????????# #??????????????????????? | | ????????????????????????# #??Y??Y????????????????? | | ????????????????????????" "??????????????????????? | | ????????????????????????" "??????????????????????? | | ???????????????????????? ??????????????????????? | | ???????????????????????? ??????????????????????? | | ####################### ?????????????????????? | | ?????????????????????? | | ?????????????????????? | | ?????????????????????? | | u?????????????????????? | | uk ?????????????????????? | | ####################### BB??????BB?????????????? | | ???????????????????????? B???????BB?????????????? | | ???????????????????????? ??????????????????????? | | ?????????????????????????????????????????????????? | | ?????????????????????????????????????????????????? | | ?????????????????????????????????????????????????? | | ?????????????????????????????????????????????????? | | ?????????????????????????????????????????????????? | | | | | | | | | +----------------------------------------------------+ Best States ------------- Heat Dissipation 50 Energy Generation 27 Energy Capacity 600 Matter Stores 300 Matter Capacity 550 Sight Range 22 Robot Scan Range 10 Terrain Scan Density 10 ECM Strength 2 Power Amplification 20 Additional Mass Support 9 Heat Shielding 100 Armor Coverage 375 Resistance: KI 20 Weapon Shielding 90 Evasion (%) 56 Targeting Accuracy 16 Target Analysis 5 Armor Integrity Analysis 33 Salvage Targeting 2 Offensive Hacking 20 Item Schematics ----------------- Lyr. Light Armor Plating | -8/Materials | Scanalyzed Lgt. Nuclear Core | -8/Materials | Scanalyzed Hacking Suite | -8/Materials | Scanalyzed Gravmag System | -6/Factory | Scanalyzed Flexi-carbon Leg | -6/Factory | Scanalyzed Remote Shield | -5/Factory | Scanalyzed Robot Schematics ------------------ None Fabricated ------------ Hacking Suite | x1 | -6/Factory Alien Tech Used ----------------- None Achievements -------------- None Challenges ------------ None Game ------ Seed HardcellDamperSink Manual? 0 Play Time 02:19:00 Cumulative 28.8 hours Start 2021.09.12 @ 14:55:46 End 2021.09.18 @ 18:31:13 Sessions 1 Manual Loads 0 Difficulty Rogue Special Mode None Game No. 24 Rogue 24 Adventurer 0 Explorer 0 Win Type - Total 0 Types 0/0/0/0/0/0/0/0/0 Lore% 29 Gallery% 31 Achievement% 23 Wizard Run 0 Options --------- ASCII 0 Keyboard 1 Movement Arrows Keybinds 0 Fullscreen 1 Font 12/Proggy Map View 83x54 Tactical HUD 1 Map Filters NONE Filters NONE Steam 1 RUN: 716866d7-b1cf-495d-9f81-a634284717b5